[Event "ESP-ch U1700 2024"]
[Site "Albacete"]
[Date "2024.08.29"]
[Round "5.7"]
[White "Rovira Grimaldos, Jose Luis"]
[Black "Molina Gomez, Juan Francisco"]
[Result "0-1"]
[ECO "B20"]
[WhiteElo "1607"]
[BlackElo "1677"]
[Annotator "NA RC"]
[PlyCount "70"]
[EventDate "2024.08.27"]
[EventType "swiss"]
[EventCountry "ESP"]
[SourceTitle "playchess.com"]
[Source "ChessBase"]
[SourceQuality "1"]
[TimeControl "5400+30"]

1. e4 {[%emt 0:00:03]} c5 {[%emt 0:00:18]} 2. Bc4 {[%emt 0:00:26]} Nc6 {[%emt 0:00:37]} 3. Nf3 {[%emt 0:00:08]} e6 {[%emt 0:01:53]} 4. O-O {[%emt 0:00:16]} d5 {[%emt 0:05:07]} 5. exd5 {[%emt 0:00:13]} exd5 {[%emt 0:00:02]} 6. Re1+ {[%emt 0:00:11]} Be6 {[%emt 0:01:17]} 7. Bb5 {[%emt 0:01:03]} a6 {[%emt 0:03:31]} 8. Bxc6+ {[%emt 0:00:12]} bxc6 {[%emt 0:00:11]} 9. d4 {[%emt 0:03:39]} h6 {[%emt 0:03:12]} 10. Be3 {[%emt 0:01:29]} c4 {[%emt 0:05:51]} 11. Ne5 {[%emt 0:02:50]} Bd6 {[%emt 0:03:58]} 12. Bf4 {[%emt 0:03:44]} Ne7 {[%emt 0:01:56]} 13. Bg3 {[%emt 0:02:27]} O-O {[%emt 0:00:27]} 14. c3 {[%emt 0:02:11]} a5 {[%emt 0:01:57]} 15. Nd2 {[%emt 0:04:09]} Ra6 {[%emt 0:01:18]} 16. b3 {[%emt 0:02:23]} cxb3 {[%emt 0:10:22]} 17. axb3 {[%emt 0:00:24]} Nf5 {[%emt 0:08:14]} 18. Ng6 {[%emt 0:06:53]} Re8 {[%emt 0:01:47]} 19. Bxd6 {[%emt 0:00:31]} Nxd6 {[%emt 0:04:10]} 20. Ne5 {[%emt 0:00:49]} Bf5 {[%emt 0:01:31]} 21. b4 {[%emt 0:09:45]} Ne4 {[%emt 0:07:54]} 22. Nxe4 {[%emt 0:06:31]} Bxe4 {[%emt 0:00:55]} 23. Qe2 {[%emt 0:03:35]} Qa8 {[%emt 0:02:49]} 24. Qg4 {[%emt 0:16:32]} Re6 {[%emt 0:13:14]} 25. Nxf7 {[%emt 0:05:18]} Rg6 {[%emt 0:02:42]} 26. Qd7 Rxg2+ {[%emt 0:00:27]} 27. Kf1 {[%emt 0:03:27]} Ra7 {[%emt 0:03:44]} 28. Nxh6+ {[%emt 0:00:40]} gxh6 {[%emt 0:01:20]} 29. Qe6+ {[%emt 0:00:02]} Rf7 {[%emt 0:00:52]} 30. Rxe4 {[%emt 0:03:06]} Rgxf2+ {[%emt 0:01:22]} 31. Kg1 {[%emt 0:00:00]} dxe4 {[%emt 0:00:43]} 32. Rxa5 {[%emt 0:07:57]} Qf8 {[%emt 0:01:47]} 33. Rg5+ {[%emt 0:07:52]} hxg5 {[%emt 0:00:15]} 34. Qg6+ Qg7 {[%emt 0:00:53]} 35. Qxg7+ {[%emt 0:00:06]} Kxg7 {[%emt 0:00:16]} 0-1

[Event "ESP-ch U1700 2024"]
[Site "Albacete"]
[Date "2024.08.29"]
[Round "5.8"]
[White "Muniz Otero, Lucas"]
[Black "Quiros Florea, Rafael-Santiago"]
[Result "1/2-1/2"]
[ECO "A45"]
[WhiteElo "1605"]
[BlackElo "1666"]
[Annotator "NA RC"]
[PlyCount "76"]
[EventDate "2024.08.27"]
[EventType "swiss"]
[EventCountry "ESP"]
[SourceTitle "playchess.com"]
[Source "ChessBase"]
[SourceQuality "1"]
[TimeControl "5400+30"]

1. d4 {[%emt 0:00:10]} Nf6 {[%emt 0:00:20]} 2. Bf4 {[%emt 0:00:31]} d5 {[%emt 0:01:13]} 3. e3 {[%emt 0:00:22]} c5 {[%emt 0:01:06]} 4. c3 {[%emt 0:00:17]} Nc6 {[%emt 0:00:28]} 5. Nf3 {[%emt 0:00:19]} Bf5 {[%emt 0:01:18]} 6. Bd3 {[%emt 0:04:31]} Bxd3 {[%emt 0:02:21]} 7. Qxd3 {[%emt 0:00:04]} e6 {[%emt 0:01:25]} 8. Nbd2 {[%emt 0:02:45]} Be7 {[%emt 0:03:05]} 9. O-O {[%emt 0:05:51]} O-O {[%emt 0:05:33]} 10. Ne5 {[%emt 0:10:12]} Nxe5 {[%emt 0:03:41]} 11. Bxe5 {[%emt 0:01:00]} Bd6 {[%emt 0:00:52]} 12. Bxd6 {[%emt 0:00:48]} Qxd6 {[%emt 0:00:35]} 13. Rfe1 {[%emt 0:09:19]} cxd4 {[%emt 0:04:29]} 14. exd4 {[%emt 0:02:28]} Rac8 {[%emt 0:05:09]} 15. Nf3 {[%emt 0:02:53]} a6 {[%emt 0:03:38]} 16. Ne5 {[%emt 0:01:45]} Nd7 {[%emt 0:04:17]} 17. Rac1 {[%emt 0:05:58]} Nxe5 {[%emt 0:03:28]} 18. dxe5 {[%emt 0:00:15]} Qc5 {[%emt 0:02:27]} 19. Qf3 {[%emt 0:02:54]} b5 {[%emt 0:01:57]} 20. Red1 {[%emt 0:06:40]} d4 {[%emt 0:04:06]} 21. Qf4 {[%emt 0:03:03]} dxc3 {[%emt 0:02:10]} 22. Rxc3 {[%emt 0:00:10]} Qe7 {[%emt 0:01:24]} 23. Qe3 {[%emt 0:02:24]} Rfd8 {[%emt 0:04:32]} 24. Rd6 {[%emt 0:15:40]} Rxc3 {[%emt 0:02:43]} 25. Qxc3 {[%emt 0:00:14]} h6 {[%emt 0:02:52]} 26. Rxd8+ {[%emt 0:00:53]} Qxd8 {[%emt 0:00:28]} 27. Qc2 {[%emt 0:02:48]} Qd5 {[%emt 0:01:07]} 28. Qc8+ {[%emt 0:05:01]} Kh7 {[%emt 0:00:08]} 29. g3 {[%emt 0:01:05]} Qxe5 {[%emt 0:01:42]} 30. Qc2+ {[%emt 0:00:39]} g6 {[%emt 0:01:37]} 31. Qc8 {[%emt 0:01:21]} Qxb2 {[%emt 0:03:42]} 32. Qb7 {[%emt 0:01:06]} Kg7 {[%emt 0:01:12]} 33. Qxa6 {[%emt 0:00:31]} Qb4 {[%emt 0:02:23]} 34. a3 {[%emt 0:01:40]} Qb1+ {[%emt 0:04:59]} 35. Kg2 {[%emt 0:00:12]} Kf6 {[%emt 0:00:53]} 36. Qd6 {[%emt 0:02:16]} Qe4+ {[%emt 0:01:36]} 37. Kg1 {[%emt 0:00:13]} Kg5 {[%emt 0:01:55]} 38. Qe7+ f6 1/2-1/2

[Event "ESP-ch U1700 2024"]
[Site "Albacete"]
[Date "2024.08.29"]
[Round "5.9"]
[White "Gil Toscano, Pablo"]
[Black "Lopez Ortuno, Angel"]
[Result "0-1"]
[ECO "C01"]
[WhiteElo "1656"]
[BlackElo "1534"]
[Annotator "NA RC"]
[PlyCount "68"]
[EventDate "2024.08.27"]
[EventType "swiss"]
[EventCountry "ESP"]
[SourceTitle "playchess.com"]
[Source "ChessBase"]
[SourceQuality "1"]
[TimeControl "5400+30"]

1. e4 {[%emt 0:00:03]} e6 {[%emt 0:00:04]} 2. d4 {[%emt 0:00:08]} d5 {[%emt 0:00:05]} 3. exd5 {[%emt 0:00:09]} exd5 {[%emt 0:00:05]} 4. Nf3 {[%emt 0:00:23]} Nf6 {[%emt 0:00:06]} 5. Bd3 {[%emt 0:00:09]} Bd6 {[%emt 0:00:15]} 6. O-O {[%emt 0:00:22]} O-O {[%emt 0:00:09]} 7. h3 {[%emt 0:00:53]} Be6 {[%emt 0:02:13]} 8. Re1 {[%emt 0:01:05]} c6 {[%emt 0:00:38]} 9. Nbd2 {[%emt 0:00:53]} Nbd7 {[%emt 0:01:37]} 10. Nf1 {[%emt 0:03:07]} Qc7 {[%emt 0:01:39]} 11. Ne3 {[%emt 0:01:19]} h6 {[%emt 0:06:34]} 12. Nf5 {[%emt 0:01:27]} Bxf5 {[%emt 0:00:42]} 13. Bxf5 {[%emt 0:00:09]} Rae8 {[%emt 0:00:20]} 14. Be3 {[%emt 0:02:43]} Ne4 {[%emt 0:02:10]} 15. c3 {[%emt 0:03:27]} Ndf6 {[%emt 0:02:34]} 16. Bxe4 {[%emt 0:03:58]} Nxe4 {[%emt 0:02:42]} 17. Nd2 {[%emt 0:01:04]} f5 {[%emt 0:04:26]} 18. Nxe4 {[%emt 0:03:40]} dxe4 {[%emt 0:01:18]} 19. d5 {[%emt 0:06:44]} Bh2+ {[%emt 0:05:41]} 20. Kh1 {[%emt 0:00:54]} f4 {[%emt 0:03:40]} 21. d6 {[%emt 0:02:18]} Qd7 {[%emt 0:02:18]} 22. Bxa7 {[%emt 0:04:26]} f3 {[%emt 0:03:33]} 23. Kxh2 {[%emt 0:01:12]} Re5 {[%emt 0:00:42]} 24. Bd4 {[%emt 0:09:19]} Rh5 {[%emt 0:02:21]} 25. Rxe4 {[%emt 0:01:34]} Qxd6+ {[%emt 0:01:20]} 26. Be5 {[%emt 0:01:25]} Qg6 {[%emt 0:00:51]} 27. g4 {[%emt 0:07:04]} Qxe4 {[%emt 0:01:17]} 28. gxh5 {[%emt 0:00:20]} Qxe5+ {[%emt 0:00:11]} 29. Kh1 {[%emt 0:00:43]} Qxh5 {[%emt 0:01:06]} 30. Kh2 {[%emt 0:05:46]} Qe5+ {[%emt 0:01:06]} 31. Kh1 {[%emt 0:02:32]} Qf5 {[%emt 0:04:28]} 32. Kh2 {[%emt 0:01:30]} Qf4+ {[%emt 0:00:05]} 33. Kg1 {[%emt 0:04:26]} Qg5+ {[%emt 0:00:18]} 34. Kh1 {[%emt 0:00:56]} Qg2# 0-1

[Event "ESP-ch U1700 2024"]
[Site "Albacete"]
[Date "2024.08.30"]
[Round "6.1"]
[White "Jimenez Fernandez, Alejandro"]
[Black "Garcia-Munoz Arias, Diego"]
[Result "1/2-1/2"]
[ECO "A04"]
[WhiteElo "1956"]
[BlackElo "1696"]
[Annotator "RC"]
[PlyCount "95"]
[EventDate "2024.08.27"]
[EventType "swiss"]
[EventCountry "ESP"]
[SourceTitle "playchess.com"]
[Source "ChessBase"]
[SourceQuality "1"]
[TimeControl "5400+30"]

1. Nf3 d6 2. d4 f5 3. c4 Nf6 4. Nc3 g6 5. e3 Bg7 6. b3 O-O 7. Bb2 c6 8. Qc2 a5 9. Be2 Qe8 10. d5 e5 11. dxe6 Bxe6 12. O-O-O a4 13. Nxa4 Ne4 14. Bxg7 Kxg7 15. Bd3 d5 16. cxd5 cxd5 17. Bxe4 fxe4 18. Nd4 Na6 19. Qb2 Kg8 20. Nb6 Rd8 21. Kb1 Nb4 22. Nxe6 Qxe6 23. Qd4 Nd3 24. Rd2 Rxf2 25. Rxf2 Nxf2 26. Rf1 Nd3 27. Nc4 Rf8 28. Rxf8+ Kxf8 29. Qh8+ Qg8 30. Qxg8+ Kxg8 31. Nd6 Ne1 32. Nxb7 Nxg2 33. a4 Nxe3 34. a5 d4 35. Nd6 Kf8 36. Nxe4 Ke7 37. Kc1 Kd7 38. Kd2 Kc6 39. Kd3 Kb5 40. Kxd4 Nf5+ 41. Ke5 Kxa5 42. Kf6 Kb4 43. Ng5 Nh4 44. Kg7 h5 45. Kf6 Kxb3 46. Ne4 Nf3 47. Kxg6 Nxh2 48. Kxh5 1/2-1/2

[Event "ESP-ch U1700 2024"]
[Site "Albacete"]
[Date "2024.08.30"]
[Round "6.2"]
[White "Lopez Milian, Adela"]
[Black "El Ammari Rovira, Yassin Jesus"]
[Result "0-1"]
[ECO "A84"]
[WhiteElo "1681"]
[BlackElo "1582"]
[Annotator "NA RC"]
[PlyCount "96"]
[EventDate "2024.08.27"]
[EventType "swiss"]
[EventCountry "ESP"]
[SourceTitle "playchess.com"]
[Source "ChessBase"]
[SourceQuality "1"]
[TimeControl "5400+30"]

1. d4 {[%emt 0:00:03]} f5 {[%emt 0:00:16]} 2. c4 {[%emt 0:00:42]} e6 {[%emt 0:00:18]} 3. Nc3 {[%emt 0:00:09]} Bb4 {[%emt 0:00:07]} 4. e3 {[%emt 0:01:34]} Bxc3+ {[%emt 0:00:23]} 5. bxc3 {[%emt 0:00:10]} Nf6 {[%emt 0:00:09]} 6. Ba3 {[%emt 0:06:10]} b6 {[%emt 0:01:11]} 7. Be2 {[%emt 0:15:07]} Bb7 {[%emt 0:01:03]} 8. Nf3 {[%emt 0:03:16]} d6 {[%emt 0:02:04]} 9. Qb3 {[%emt 0:04:31]} c5 {[%emt 0:09:31]} 10. dxc5 {[%emt 0:06:21]} dxc5 {[%emt 0:00:39]} 11. Bxc5 {[%emt 0:03:01]} Ne4 {[%emt 0:05:52]} 12. Ba3 {[%emt 0:03:36]} Nd7 {[%emt 0:12:26]} 13. O-O {[%emt 0:09:58]} Ndc5 {[%emt 0:07:07]} 14. Qb2 {[%emt 0:06:34]} O-O {[%emt 0:03:19]} 15. Rac1 {[%emt 0:05:15]} Qf6 {[%emt 0:26:40]} 16. Qc2 {[%emt 0:05:09]} Rfd8 {[%emt 0:03:38]} 17. Nd4 {[%emt 0:05:59]} e5 {[%emt 0:01:35]} 18. Bxc5 {[%emt 0:01:07]} Nxc5 {[%emt 0:09:36]} 19. Nxf5 {[%emt 0:00:35]} Be4 {[%emt 0:01:22]} 20. Qb2 {[%emt 0:08:38]} Bxf5 {[%emt 0:02:10]} 21. Rcd1 {[%emt 0:02:37]} Qg6 {[%emt 0:02:23]} 22. Kh1 {[%emt 0:02:21]} Qc6 {[%emt 0:03:50]} 23. Qb5 {[%emt 0:02:44]} Qxb5 {[%emt 0:03:32]} 24. cxb5 {[%emt 0:00:04]} Na4 {[%emt 0:00:22]} 25. Rc1 {[%emt 0:04:23]} Rac8 {[%emt 0:02:02]} 26. c4 {[%emt 0:00:39]} Rd2 {[%emt 0:00:28]} 27. Bd1 {[%emt 0:01:21]} Rxa2 {[%emt 0:01:20]} 28. c5 {[%emt 0:00:06]} Ra3 {[%emt 0:00:31]} 29. cxb6 {[%emt 0:01:34]} Nxb6 {[%emt 0:00:02]} 30. Rxc8+ {[%emt 0:00:34]} Bxc8 {[%emt 0:00:29]} 31. Bf3 {[%emt 0:00:18]} Bd7 {[%emt 0:00:55]} 32. h3 {[%emt 0:01:11]} Bxb5 {[%emt 0:00:19]} 33. Rd1 {[%emt 0:00:07]} Rd3 {[%emt 0:00:21]} 34. Rc1 {[%emt 0:00:08]} Bc4 {[%emt 0:00:54]} 35. Be2 {[%emt 0:00:30]} e4 {[%emt 0:00:34]} 36. Bxd3 {[%emt 0:00:42]} exd3 {[%emt 0:00:01]} 37. Rd1 {[%emt 0:00:37]} Na4 {[%emt 0:00:19]} 38. Kg1 {[%emt 0:00:11]} Nb2 {[%emt 0:00:27]} 39. Rd2 {[%emt 0:00:12]} Na4 {[%emt 0:00:08]} 40. f3 {[%emt 0:00:16]} Nc5 {[%emt 0:00:05]} 41. Kf2 {[%emt 0:00:32]} Nb3 {[%emt 0:00:34]} 42. Rd1 {[%emt 0:00:19]} a5 {[%emt 0:00:31]} 43. e4 {[%emt 0:00:55]} a4 {[%emt 0:00:11]} 44. e5 {[%emt 0:01:35]} a3 {[%emt 0:00:54]} 45. e6 {[%emt 0:00:27]} a2 {[%emt 0:00:23]} 46. e7 {[%emt 0:00:19]} Kf7 {[%emt 0:00:02]} 47. Re1 {[%emt 0:00:23]} Ke8 {[%emt 0:00:11]} 48. Ke3 {[%emt 0:00:54]} a1=Q {[%emt 0:00:14]} 0-1

[Event "ESP-ch U1700 2024"]
[Site "Albacete"]
[Date "2024.08.30"]
[Round "6.3"]
[White "Saiz Alonso de Armino, Daniel"]
[Black "Molina Gomez, Juan Francisco"]
[Result "1-0"]
[ECO "A43"]
[WhiteElo "1689"]
[BlackElo "1677"]
[Annotator "NA RC"]
[PlyCount "115"]
[EventDate "2024.08.27"]
[EventType "swiss"]
[EventCountry "ESP"]
[SourceTitle "playchess.com"]
[Source "ChessBase"]
[SourceQuality "1"]
[TimeControl "5400+30"]

1. d4 {[%emt 0:00:23]} c5 {[%emt 0:00:44]} 2. c3 {[%emt 0:00:22]} Nc6 {[%emt 0:01:32]} 3. Nf3 {[%emt 0:00:55]} cxd4 {[%emt 0:01:11]} 4. cxd4 {[%emt 0:01:21]} Qa5+ {[%emt 0:01:07]} 5. Nc3 {[%emt 0:00:50]} d6 {[%emt 0:01:58]} 6. Bf4 {[%emt 0:01:09]} e5 {[%emt 0:01:31]} 7. Bg3 {[%emt 0:00:46]} Bg4 {[%emt 0:03:41]} 8. d5 Bxf3 {[%emt 0:01:29]} 9. exf3 {[%emt 0:10:05]} Nd4 {[%emt 0:00:30]} 10. f4 {[%emt 0:02:54]} Rc8 {[%emt 0:04:01]} 11. Rc1 {[%emt 0:02:05]} Nf5 {[%emt 0:10:29]} 12. fxe5 {[%emt 0:01:42]} Nxg3 {[%emt 0:00:17]} 13. hxg3 {[%emt 0:00:18]} dxe5 {[%emt 0:00:55]} 14. Bb5+ {[%emt 0:08:29]} Kd8 {[%emt 0:01:45]} 15. Bd3 {[%emt 0:17:14]} Nf6 {[%emt 0:00:46]} 16. O-O {[%emt 0:03:02]} a6 {[%emt 0:04:18]} 17. Bf5 {[%emt 0:03:27]} Rc4 {[%emt 0:07:24]} 18. Qe2 {[%emt 0:04:40]} Qc7 {[%emt 0:01:02]} 19. Rfd1 {[%emt 0:02:09]} Bd6 {[%emt 0:00:53]} 20. Qe3 {[%emt 0:03:01]} g6 {[%emt 0:09:22]} 21. Qg5 {[%emt 0:01:15]} Qe7 {[%emt 0:04:44]} 22. Bh3 {[%emt 0:00:50]} h6 {[%emt 0:03:17]} 23. Qd2 {[%emt 0:02:27]} g5 {[%emt 0:00:42]} 24. Ne4 {[%emt 0:02:05]} Rxc1 {[%emt 0:02:11]} 25. Rxc1 {[%emt 0:00:47]} g4 {[%emt 0:00:35]} 26. Nxf6 {[%emt 0:01:16]} gxh3 {[%emt 0:00:37]} 27. Ne4 {[%emt 0:00:55]} Qd7 {[%emt 0:07:37]} 28. Nxd6 {[%emt 0:01:34]} h2+ {[%emt 0:00:55]} 29. Kxh2 {[%emt 0:00:55]} Qxd6 {[%emt 0:00:06]} 30. Qa5+ {[%emt 0:00:23]} Kd7 {[%emt 0:00:45]} 31. Qa4+ {[%emt 0:03:45]} Ke7 {[%emt 0:01:01]} 32. Qh4+ {[%emt 0:01:03]} Kd7 {[%emt 0:00:46]} 33. Qg4+ {[%emt 0:00:32]} Ke7 {[%emt 0:01:01]} 34. Qg7 {[%emt 0:02:12]} Rd8 {[%emt 0:00:19]} 35. Re1 {[%emt 0:00:36]} Kd7 {[%emt 0:04:15]} 36. Qxf7+ {[%emt 0:01:01]} Kc8 {[%emt 0:00:32]} 37. Qf5+ {[%emt 0:00:09]} Kb8 {[%emt 0:00:26]} 38. Qxe5 {[%emt 0:00:08]} Qxe5 {[%emt 0:02:49]} 39. Rxe5 {[%emt 0:00:07]} Rd6 {[%emt 0:00:11]} 40. Kh3 {[%emt 0:00:21]} b5 {[%emt 0:00:09]} 41. Kh4 {[%emt 0:00:17]} b4 {[%emt 0:01:13]} 42. f4 {[%emt 0:00:05]} Kc7 {[%emt 0:00:37]} 43. f5 {[%emt 0:00:26]} a5 {[%emt 0:00:25]} 44. g4 {[%emt 0:00:31]} a4 {[%emt 0:02:52]} 45. g5 {[%emt 0:00:08]} hxg5+ {[%emt 0:00:09]} 46. Kxg5 {[%emt 0:00:14]} Rd8 {[%emt 0:01:43]} 47. Re7+ {[%emt 0:01:22]} Kb6 {[%emt 0:00:31]} 48. f6 {[%emt 0:00:19]} Rxd5+ {[%emt 0:00:19]} 49. Kg6 {[%emt 0:00:25]} Rd2 {[%emt 0:00:15]} 50. g4 {[%emt 0:00:57]} a3 {[%emt 0:01:50]} 51. bxa3 {[%emt 0:00:46]} bxa3 {[%emt 0:00:12]} 52. f7 {[%emt 0:00:25]} Rf2 {[%emt 0:00:34]} 53. Re6+ {[%emt 0:00:18]} Kb5 {[%emt 0:00:16]} 54. Rf6 {[%emt 0:00:14]} Rxa2 {[%emt 0:00:19]} 55. f8=Q {[%emt 0:00:07]} Ka4 {[%emt 0:00:56]} 56. Rb6 {[%emt 0:00:19]} Ka5 {[%emt 0:00:42]} 57. Qc5+ {[%emt 0:00:08]} Ka4 {[%emt 0:00:17]} 58. Qb5# 1-0

[Event "ESP-ch U1700 2024"]
[Site "Albacete"]
[Date "2024.08.30"]
[Round "6.4"]
[White "Perez Fernandez, Alvaro"]
[Black "Trujillo Torres, Alvaro"]
[Result "1/2-1/2"]
[ECO "A04"]
[WhiteElo "1638"]
[BlackElo "1595"]
[Annotator "NA RC"]
[PlyCount "73"]
[EventDate "2024.08.27"]
[EventType "swiss"]
[EventCountry "ESP"]
[SourceTitle "playchess.com"]
[Source "ChessBase"]
[SourceQuality "1"]
[TimeControl "5400+30"]

1. Nf3 {[%emt 0:01:15]} d6 {[%emt 0:00:17]} 2. g3 {[%emt 0:01:17]} Nf6 {[%emt 0:00:29]} 3. Bg2 {[%emt 0:01:01]} e5 {[%emt 0:01:26]} 4. d3 {[%emt 0:02:57]} c6 {[%emt 0:01:21]} 5. O-O {[%emt 0:01:33]} Be7 {[%emt 0:01:18]} 6. e4 {[%emt 0:05:40]} O-O {[%emt 0:01:20]} 7. Nc3 {[%emt 0:01:32]} Qc7 {[%emt 0:01:49]} 8. Re1 {[%emt 0:04:13]} Rd8 {[%emt 0:03:10]} 9. Bg5 {[%emt 0:06:32]} Nbd7 {[%emt 0:00:53]} 10. Qe2 {[%emt 0:02:58]} h6 {[%emt 0:03:02]} 11. Bxf6 {[%emt 0:01:09]} Nxf6 {[%emt 0:00:30]} 12. Rad1 {[%emt 0:02:48]} Qb6 13. Rb1 {[%emt 0:03:09]} Bg4 {[%emt 0:20:38]} 14. Qe3 {[%emt 0:06:49]} Qxe3 {[%emt 0:09:56]} 15. Rxe3 {[%emt 0:00:30]} Bxf3 {[%emt 0:00:08]} 16. Bxf3 {[%emt 0:00:20]} Re8 {[%emt 0:00:26]} 17. b4 {[%emt 0:01:42]} b5 {[%emt 0:00:57]} 18. a4 {[%emt 0:04:08]} a6 19. Ree1 {[%emt 0:04:23]} Nd7 {[%emt 0:10:58]} 20. axb5 {[%emt 0:05:05]} axb5 {[%emt 0:00:19]} 21. Ra1 {[%emt 0:00:47]} Nf8 {[%emt 0:12:59]} 22. Rxa8 {[%emt 0:04:21]} Rxa8 {[%emt 0:00:09]} 23. Rb1 {[%emt 0:00:47]} Ne6 {[%emt 0:01:03]} 24. Rb2 {[%emt 0:06:52]} Nd4 {[%emt 0:01:35]} 25. Kg2 {[%emt 0:02:44]} Bd8 {[%emt 0:11:30]} 26. Ne2 {[%emt 0:01:33]} Bb6 {[%emt 0:00:34]} 27. c3 {[%emt 0:03:20]} Nxe2 {[%emt 0:00:30]} 28. Bxe2 {[%emt 0:00:21]} Ra3 {[%emt 0:00:34]} 29. Rc2 {[%emt 0:02:14]} Kf8 {[%emt 0:03:57]} 30. Bg4 {[%emt 0:04:28]} Ke7 {[%emt 0:00:15]} 31. f4 {[%emt 0:00:53]} f6 {[%emt 0:01:21]} 32. f5 {[%emt 0:00:51]} d5 {[%emt 0:03:47]} 33. Be2 {[%emt 0:03:47]} Rb3 {[%emt 0:03:24]} 34. Kh3 {[%emt 0:03:50]} Bg1 {[%emt 0:01:51]} 35. Kg2 {[%emt 0:01:19]} Bb6 {[%emt 0:00:54]} 36. Kh3 {[%emt 0:00:12]} dxe4 37. dxe4 1/2-1/2

[Event "ESP-ch U1700 2024"]
[Site "Albacete"]
[Date "2024.08.30"]
[Round "6.5"]
[White "Lopez Ortuno, Angel"]
[Black "Cerdeno Gil, Izan"]
[Result "0-1"]
[ECO "C54"]
[WhiteElo "1534"]
[BlackElo "1637"]
[Annotator "NA RC"]
[PlyCount "86"]
[EventDate "2024.08.27"]
[EventType "swiss"]
[EventCountry "ESP"]
[SourceTitle "playchess.com"]
[Source "ChessBase"]
[SourceQuality "1"]
[TimeControl "5400+30"]

1. e4 {[%emt 0:00:02]} e5 {[%emt 0:00:08]} 2. Nf3 {[%emt 0:00:04]} Nc6 {[%emt 0:00:11]} 3. Bc4 {[%emt 0:00:28]} Bc5 {[%emt 0:00:11]} 4. c3 {[%emt 0:00:06]} Nf6 {[%emt 0:00:11]} 5. d3 {[%emt 0:00:12]} d6 {[%emt 0:00:11]} 6. h3 {[%emt 0:00:14]} h6 {[%emt 0:00:15]} 7. O-O {[%emt 0:00:06]} O-O {[%emt 0:00:15]} 8. Re1 {[%emt 0:00:03]} Re8 {[%emt 0:01:26]} 9. Nbd2 {[%emt 0:00:38]} d5 {[%emt 0:02:31]} 10. exd5 {[%emt 0:02:24]} Nxd5 {[%emt 0:00:47]} 11. b4 {[%emt 0:01:23]} Bb6 {[%emt 0:04:37]} 12. Qb3 {[%emt 0:01:16]} Be6 {[%emt 0:00:45]} 13. Nxe5 {[%emt 0:04:23]} Nxe5 {[%emt 0:01:42]} 14. Rxe5 {[%emt 0:00:08]} Qd6 {[%emt 0:00:11]} 15. Nf3 {[%emt 0:07:27]} c6 {[%emt 0:07:13]} 16. Ba3 {[%emt 0:03:45]} Qd7 {[%emt 0:00:47]} 17. Rae1 {[%emt 0:02:49]} Nf4 {[%emt 0:05:16]} 18. Bxe6 {[%emt 0:03:50]} Rxe6 {[%emt 0:00:11]} 19. Rxe6 {[%emt 0:00:22]} fxe6 {[%emt 0:00:02]} 20. d4 {[%emt 0:04:55]} Rf8 {[%emt 0:07:26]} 21. b5 {[%emt 0:06:55]} Rf5 {[%emt 0:00:33]} 22. Ne5 {[%emt 0:00:23]} Qe8 {[%emt 0:00:58]} 23. Qb4 {[%emt 0:07:44]} Rxe5 {[%emt 0:02:05]} 24. Rxe5 {[%emt 0:02:56]} Nd3 {[%emt 0:02:20]} 25. Qe7 {[%emt 0:01:59]} Qxe7 {[%emt 0:00:09]} 26. Bxe7 {[%emt 0:00:05]} Nxe5 {[%emt 0:00:10]} 27. dxe5 {[%emt 0:00:06]} cxb5 {[%emt 0:00:54]} 28. Kf1 {[%emt 0:01:11]} Ba5 {[%emt 0:00:35]} 29. Bb4 {[%emt 0:00:14]} Bxb4 {[%emt 0:00:21]} 30. cxb4 {[%emt 0:00:06]} Kf7 {[%emt 0:00:08]} 31. Ke2 {[%emt 0:00:24]} Kg6 {[%emt 0:00:13]} 32. Ke3 {[%emt 0:04:03]} Kf5 {[%emt 0:01:01]} 33. f4 {[%emt 0:01:05]} h5 {[%emt 0:03:20]} 34. Kf3 {[%emt 0:03:49]} h4 {[%emt 0:00:19]} 35. g4+ {[%emt 0:00:27]} hxg3 {[%emt 0:00:09]} 36. Kxg3 {[%emt 0:00:11]} g5 {[%emt 0:00:14]} 37. fxg5 {[%emt 0:00:11]} Kxg5 {[%emt 0:00:08]} 38. h4+ {[%emt 0:00:05]} Kf5 {[%emt 0:00:23]} 39. h5 {[%emt 0:00:59]} Kg5 {[%emt 0:00:29]} 40. h6 {[%emt 0:00:10]} Kxh6 {[%emt 0:00:19]} 41. Kh4 {[%emt 0:00:37]} Kg6 {[%emt 0:00:16]} 42. Kg4 {[%emt 0:00:22]} b6 {[%emt 0:00:32]} 43. Kf4 {[%emt 0:01:06]} Kh5 {[%emt 0:00:11]} 0-1